Cogmind - Beta 14 @@@ ROGUE MODE // 2024.09.21 @ 02:12:07 Player: Brimble Result: Destroyed by H-66 Slayer with Heavy Assault Rifle Performance ------------- Evolutions (5) 2500 Regions Visited (10) 2000 Robots Destroyed (139) 695 Value Destroyed (4613) 4613 Prototype IDs (4) 80 Alien Tech Used (0) 0 Bonus (1206) 1206 TOTAL SCORE: 11094 Bonus ------- High Alert Combat Kills 350 Follower Combat Kills 171 Entered Garrisons 200 Used RIF Installer 500 Friendly Fire -15 Cogmind --------- Core Integrity 0/1000 Matter 300/300 Energy 98/100 System Corruption 2% Temperature Cool (0) Movement Core (50) Location -5/Upper Caves Parts ------- > --- POWER (2) -------- (None) > --- PROPULSION (4) --- (None) > --- UTILITY (8) ------ (None) > --- WEAPON (3) ------- (None) > --- INVENTORY (5) ---- Neutrino Core Compact Battery (68) Medium Matter Pod (100) Railgun Peak State ------------ > --- POWER ------------ Improved Deuterium Engine Light Angular Momentum Engine > --- PROPULSION ------- Light Treads Improved Medium Treads Heavy Treads > --- UTILITY ---------- Cryofiber Web High-capacity Storage Unit Advanced Signal Interpreter Advanced Terrain Scanner Targeting Computer Recoil Nullifier Improved Weapon Cycler Improved Medium Armor Plating > --- WEAPON ----------- Gatling Laser Mass Driver Kinetic Spear > --- INVENTORY -------- Improved Deuterium Engine Micro Fission Core Light Treads Gravmag System Improved Heat Sink Large Storage Unit Small Battery Medium Matter Pod Gravity Neutralizer Recoil Nullifier Improved Light Armor Plating Improved System Restoration Module Advanced Trap Extractor Drone Bay Disruptor Cannon Magnetic Acceleration Cannon Magnetic Acceleration Cannon Improved Plasma Cutter Kinetic Spear [Rating: 83] Favorites ----------- Power Light Ion Engine Engine Light Ion Engine Power Core Micro Fission Core Propulsion Aluminum Leg Treads Light Treads Leg Aluminum Leg Wheel Subdweller Monowheel Flight Unit Field Propulsion Drive Utility Seismic Detector Device Seismic Detector Storage Small Storage Unit Processor Advanced Targeting Computer Protection Light Armor Plating Weapon Mining Laser Energy Gun Medium Laser Energy Cannon Disruptor Cannon Ballistic Gun Assault Rifle Ballistic Cannon Enhanced Gauss Cannon Launcher Grenade Launcher Special Weapon Mining Laser Piercing Weapon Kinetic Spear Build | -11 -10 -10 -10 -8 -8 -8 -7 -6 -5 -5 ------- Run | Yrd Mat Min Sub Mat Gar Mat Fac Fac Fac Upp Slots Evolved 10 | . . . . 4 . . 2 2 2 . Power 1 | . . . . . . . . . 1 . Propulsion 2 | . . . . 1 . . . . 1 . Utility 6 | . . . . 3 . . 2 1 . . Weapon 1 | . . . . . . . . 1 . . Parts Attached 155 | 10 4 13 32 4 13 4 7 19 47 2 Power 18 | 1 . 2 4 . 2 . 1 2 5 1 Engine 12 | 1 . 2 4 . 1 . . 1 3 . Core 6 | . . . . . 1 . 1 1 2 1 Reactor . | . . . . . . . . . . . Propulsion 20 | 2 . 2 3 1 2 . 1 4 4 1 Treads 13 | . . . 1 1 2 . 1 4 4 . Leg 5 | 2 . 2 1 . . . . . . . Wheel 1 | . . . 1 . . . . . . . Hover . | . . . . . . . . . . . Flight 1 | . . . . . . . . . . 1 Utility 71 | 2 2 5 12 2 6 4 4 8 26 . Device 47 | 1 . 5 9 2 3 1 2 4 20 . Storage 7 | 1 1 . . . . 1 1 1 2 . Processor 6 | . 1 . . . . 1 1 1 2 . Hackware . | . . . . . . . . . . . Protection 11 | . . . 3 . 3 1 . 2 2 . Artifact . | . . . . . . . . . . . Weapon 46 | 5 2 4 13 1 3 . 1 5 12 . Energy Gun 12 | 1 1 2 5 . 1 . . . 2 . Energy Cannon 2 | . . . . . . . . 1 1 . Ballistic Gun 6 | 1 1 1 . 1 . . . 1 1 . Ballistic Cannon 10 | . . . . . 2 . 1 3 4 . Launcher 5 | . . 1 4 . . . . . . . Special Weapon 7 | 3 . . 4 . . . . . . . Impact Weapon . | . . . . . . . . . . . Slashing Weapon . | . . . . . . . . . . . Piercing Weapon 4 | . . . . . . . . . 4 . Special Melee Weapon . | . . . . . . . . . . . Unidentified Prototypes 4 | . . . . 1 . . . 2 1 . Parts Lost 49 | . 1 . 8 . 2 . 4 5 26 3 Power 6 | . . . . . 1 . 1 . 3 1 Propulsion 12 | . . . 3 . . . 1 2 5 1 Utility 19 | . . . 1 . 1 . 1 2 13 1 Weapon 12 | . 1 . 4 . . . 1 1 5 . Highest Loss Streak 12 | . 1 . 3 . 2 . 2 2 12 2 To Critical Strikes . | . . . . . . . . . . . Average Slot Usage (%) 89 | . 100 100 95 78 89 90 89 91 83 10 Engine 8 | . 14 14 14 9 8 9 3 5 7 . Treads 12 | . . . 5 15 20 18 14 14 15 . Leg 5 | . 28 28 16 . . . . . . . Device 22 | . 7 13 15 27 33 25 25 28 20 2 Storage 6 | . 14 14 8 . . 5 7 6 4 . Processor 6 | . 6 . . . . 8 12 16 11 . Protection 3 | . . . 4 . 6 5 6 . 3 . Energy Gun 4 | . 12 9 12 15 4 . . . 2 . Ballistic Gun 3 | . 12 13 6 3 4 . . . . . Ballistic Cannon 9 | . . . . . 9 18 14 17 10 . Launcher 1 | . . 4 6 . . . . . . . Peak Build Rating 83 | 8 8 20 24 33 54 51 58 67 83 12 Average Rating 26 | 6 7 13 15 28 41 49 55 60 63 8 On Entrance 27 | . 7 8 17 24 33 50 49 53 54 2 Naked Turns 104 | . . . . . . . . . 69 35 Heaviest Build 96 | 13 18 24 31 21 42 58 80 82 96 6 Greatest Support 130 | 20 20 25 25 42 92 70 92 102 130 7 Greatest Overweight (x) 2 | 1 . . 1 . . . 1 1 2 . Average Overweight (x) . | . . . . . . . . . . . Largest Inventory Capacity 20 | 8 10 10 10 5 5 15 20 20 20 5 Average Capacity 10 | 7 9 10 8 5 5 11 19 19 18 5 Most Carried 20 | 8 9 10 10 5 5 12 18 20 20 5 Average Carried 8 | 6 7 9 6 4 4 8 15 18 14 3 Final Capacity 20 | 8 10 10 5 5 5 15 20 15 5 5 Final Carried 18 | 7 9 10 4 5 5 12 18 15 4 4 Class Distribution -------------------- 73% | Mutant 13% | Scavenger-Mutant 5% | Scavenger-Skirmisher 4% | Scavenger-Gunner Dominant Class ---------------- Mutant | -10/Materials Scavenger-Mutant | -10/Mines Scavenger-Mutant | -10/Subcaves Scavenger-Mutant | -8/Materials Mutant | -8/Garrison Mutant | -8/Materials Mutant | -7/Factory Scavenger-Skirmisher | -6/Factory Scavenger-Gunner | -5/Factory Mutant | -5/Upper Caves Resources | -11 -10 -10 -10 -8 -8 -8 -7 -6 -5 -5 ----------- Run | Yrd Mat Min Sub Mat Gar Mat Fac Fac Fac Upp Matter Collected 5277 | 298 98 209 363 . 458 1026 920 560 1213 132 Remotely 368 | . . . . . . . . . 368 . Salvage Created 4249 | 143 140 220 275 . 391 879 757 377 1067 . Parts 268 | 17 13 14 25 . 21 65 41 21 51 . Haulers Intercepted 5 | . 1 . . . . 3 1 . . . Recyclers Shooed 5 | 1 . . . . . . 2 1 1 . Parts Field Recycled . | . . . . . . . . . . . Retrieved Matter . | . . . . . . . . . . . Parts Self-Destructed 14 | . . . 11 . . . . . . 3 Prevented 1 | . . . 1 . . . . . . . Kills | -11 -10 -10 -10 -8 -8 -8 -7 -6 -5 -5 ------- Run | Yrd Mat Min Sub Mat Gar Mat Fac Fac Fac Upp Combat Hostiles Destroyed 86 | . 6 7 10 . 8 17 14 9 15 . Melee 1 | . . . . . . . . . 1 . Guns 26 | . 6 3 6 . 7 . . . 4 . Cannons 52 | . . . 2 . 1 17 14 9 9 . AOE 7 | . . 4 2 . . . . . 1 . Classes Destroyed 17 | 3 3 1 1 . 1 3 4 . 1 . Worker 17 | 4 . 1 . . . 5 6 . 1 . Builder 8 | . . . . . . 2 1 . 5 . Tunneler 3 | 3 . . . . . . . . . . Hauler 5 | . 1 . . . . 3 1 . . . Recycler 11 | 1 . 1 . . . 2 4 1 2 . Mechanic 1 | . . . . . . 1 . . . . Operator 1 | . . . . . . . 1 . . . Watcher 7 | . 1 . . . . 4 1 1 . . Swarmer 23 | . 6 3 3 . . 4 4 3 . . Grunt 28 | . . 4 . . 4 5 5 2 8 . Brawler 2 | . . . . . . . 1 1 . . Duelist 1 | . . . . . . . 1 . . . Sentry 14 | . . . . . 4 6 2 1 1 . Hunter 6 | . . . . . . 2 . 1 3 . Programmer 4 | . . . . . . . 1 1 2 . Heavy 1 | . . . . . . . . . 1 . Subdweller 7 | . . . 7 . . . . . . . Best Kill Streak 5 | 2 3 4 3 . 2 5 5 3 5 . Combat Bots Only 4 | . 3 3 3 . 2 4 4 3 4 . Max Kills in Single Turn 2 | 1 1 2 1 . 1 2 2 1 2 . Gunslinging . | . . . . . . . . . . . Exploded 1 | . . 1 1 . . . . . 1 . Melee 1 | . . . . . . . . . 1 . Uniques/NPCs Destroyed . | . . . . . . . . . . . Combat | -11 -10 -10 -10 -8 -8 -8 -7 -6 -5 -5 -------- Run | Yrd Mat Min Sub Mat Gar Mat Fac Fac Fac Upp Hostile Shots Fired 729 | . 16 28 89 . 40 81 84 59 296 36 Missed 236 | . 3 7 34 . 15 28 31 24 79 15 Damage Taken 8384 | . 146 214 873 . 514 757 761 489 4311 319 Core 1484 | . 32 86 114 . 33 74 99 34 822 190 Absorbed by Shields . | . . . . . . . . . . . Core Remaining (%) 73 | 100 . . 7 . . 80 85 96 . . Volleys Fired 644 | 321 22 18 41 . 41 61 56 24 60 . Largest 3 | 2 2 2 2 . 2 2 2 3 3 . Hottest 200 | 200 70 125 175 . 114 114 114 163 194 . Shots Fired 1002 | 334 44 36 58 . 75 122 110 69 154 . Gun 222 | 26 44 29 37 . 53 . . . 33 . Cannon 444 | . . . . . 22 122 110 69 121 . Launcher 12 | . . 7 5 . . . . . . . Special 324 | 308 . . 16 . . . . . . . Kinetic 512 | 2 22 10 3 . 58 122 110 66 119 . Thermal 442 | 332 22 19 38 . 12 . . . 19 . Explosive 12 | . . 7 5 . . . . . . . Electromagnetic 36 | . . . 12 . 5 . . 3 16 . Robot Hit Streak 19 | 4 5 5 9 . 9 13 7 18 19 . Robot Miss Streak 6 | 2 3 2 2 . 3 3 6 5 3 . Penetration Max 1 | . . . . . . 1 1 . 1 . Secondary Targets 1 | . . . 1 . . . . . . . Max Gunslinging Chain 1 | . . . 1 . . . . . . . Shots Hit Robots 409 | 20 22 15 33 . 38 73 61 36 111 . Core Hits 208 | 9 9 14 18 . 16 36 30 16 60 . Critical Kills . | . . . . . . . . . . . Critical Parts Destroyed . | . . . . . . . . . . . Critical Strikes 35 | 3 2 . 2 . 1 8 10 4 5 . Burn 8 | 3 2 . 2 . 1 . . . . . Blast 26 | . . . . . . 8 10 4 4 . Corrupt 1 | . . . . . . . . . 1 . Melee Attacks 14 | . . . . . . . . . 14 . Impact . | . . . . . . . . . . . Slashing . | . . . . . . . . . . . Piercing 14 | . . . . . . . . . 14 . Sneak Attacks . | . . . . . . . . . . . Combat Hostiles . | . . . . . . . . . . . Follow-up Attacks 2 | . . . . . . . . . 2 . Damage Inflicted 12369 | 323 278 544 842 . 851 2617 2353 1056 3505 . Guns 2429 | 199 272 242 452 . 523 . . . 741 . Cannons 8402 | . . . . . 276 2599 2353 1036 2138 . Explosions 890 | . . 302 342 . 52 . . . 194 . Melee 367 | . . . . . . . . . 367 . Ramming 113 | 4 6 . . . . 18 . 20 65 . Kinetic 9055 | 13 148 62 27 . 626 2599 2353 1020 2207 . Thermal 1587 | 306 124 180 339 . 160 . . . 478 . Explosive 644 | . . 302 342 . . . . . . . Electromagnetic 603 | . . . 134 . 65 . . 16 388 . Impact . | . . . . . . . . . . . Slashing . | . . . . . . . . . . . Piercing 367 | . . . . . . . . . 367 . Highest Corruption 10 | . . . . . . . . 10 2 2 Average Corruption 4 | . . . . . . . . 6 1 2 Corruption Purged . | . . . . . . . . . . . Corruption Blocked . | . . . . . . . . . . . Effects 36 | . . . . . . . . 25 10 1 Message Errors 8 | . . . . . . . . 6 2 . Matter Fused 5 | . . . . . . . . 3 2 . Heat Flow Errors 6 | . . . . . . . . 6 . . Energy Discharges 5 | . . . . . . . . 2 2 1 Parts Rejected 1 | . . . . . . . . . 1 . Parts Fused 2 | . . . . . . . . 2 . . Data Loss (minor) 3 | . . . . . . . . 1 2 . Data Loss (major) 3 | . . . . . . . . 2 1 . Misfires 3 | . . . . . . . . 3 . . Overload Shots . | . . . . . . . . . . . Overflow Damage 220 | . . . . . . 104 89 6 21 . Projectiles 209 | . . . . . . 104 89 6 10 . Explosions . | . . . . . . . . . . . Melee 11 | . . . . . . . . . 11 . Knockbacks 57 | . . . . . . 13 12 7 25 . Impact 1 | . . . . . . . . . 1 . Kinetic 55 | . . . . . . 13 12 7 23 . Secondary 1 | . . . . . . . . . 1 . Self-Inflicted Damage 64 | . . 7 22 . 28 . . . 7 . Shots 3 | . . 1 1 . 1 . . . . . Rammed 14 | . . . . . . 7 . 2 5 . Targets Rammed 19 | 3 2 . . . . 7 . 2 5 . Kicked 5 | 3 2 . . . . . . . . . Crushed . | . . . . . . . . . . . Highest Temperature 431 | 240 36 216 32 . . . . 143 431 . Average Temperature 68 | 67 13 66 14 . . . . 70 139 . Received Heat Transfer 1800 | . . 63 132 . 189 279 219 60 858 . Effects 2 | 2 . . . . . . . . . . Energy Bleed 1 | 1 . . . . . . . . . . Interference 1 | 1 . . . . . . . . . . Siege Activations . | . . . . . . . . . . . Robots Corrupted 2 | . . . . . . . . . 2 . Combat Hostiles . | . . . . . . . . . . . Parts Fried 8 | . . . 1 . . . . . 7 . Impact Corruptions 2 | . . . . . . . . . 2 . Robots Melted . | . . . . . . . . . . . Combat Hostiles . | . . . . . . . . . . . Parts Melted 5 | 2 1 . 1 . . . 1 . . . Heat Transferred 4027 | 1027 518 407 766 . 309 . . . 1000 . Parts Sabotaged . | . . . . . . . . . . . Parts Stolen . | . . . . . . . . . . . Parts Stripped . | . . . . . . . . . . . Power Chain Reactions 1 | . . . . . 1 . . . . . Alert | -11 -10 -10 -10 -8 -8 -8 -7 -6 -5 -5 ------- Run | Yrd Mat Min Sub Mat Gar Mat Fac Fac Fac Upp Peak Influence 795 | 30 224 249 . 4 573 752 795 468 386 . Initial 315 | . . 12 . . 2 278 291 315 155 . Average 156 | 1 69 149 . . 287 608 448 390 115 . Maximum Alert Level 3 | . 1 1 . . 2 3 3 2 1 . Low Security (%) 69 | 100 90 73 . 100 30 . . . 89 . Level 1 13 | . 9 26 . . 35 4 53 60 10 . Level 2 13 | . . . . . 34 69 26 39 . . Level 3 3 | . . . . . . 26 20 . . . Level 4 . | . . . . . . . . . . . Level 5 . | . . . . . . . . . . . High Security . | . . . . . . . . . . . Max Security . | . . . . . . . . . . . Squads Dispatched 19 | . 1 . . . . 2 6 2 8 . Investigation 2 | . . . . . . . 1 . 1 . Extermination 5 | . . . . . . . 1 2 2 . Reinforcement 6 | . 1 . . . . . . . 5 . Assault 4 | . . . . . . 2 2 . . . Garrison 2 | . . . . . . . 2 . . . Intercept . | . . . . . . . . . . . Searches Triggered . | . . . . . . . . . . . Construction Impeded 2 | . . . . . . . . . 2 . Haulers Reinforced . | . . . . . . . . . . . Active Scanning Responses . | . . . . . . . . . . . Cargo Convoy Interrupts . | . . . . . . . . . . . Stealth | -11 -10 -10 -10 -8 -8 -8 -7 -6 -5 -5 --------- Run | Yrd Mat Min Sub Mat Gar Mat Fac Fac Fac Upp Distress Signals 6 | . 1 . . . . 2 1 . 2 . Communications Jammed . | . . . . . . . . . . . Distress Signals . | . . . . . . . . . . . Times Spotted 155 | . 11 11 15 . 13 34 17 12 39 3 Peak Tracking Total 11 | . 4 3 6 . 4 6 4 4 11 2 Tactical Retreats 20 | . 2 . 2 . . 6 . 1 9 . Traps | -11 -10 -10 -10 -8 -8 -8 -7 -6 -5 -5 ------- Run | Yrd Mat Min Sub Mat Gar Mat Fac Fac Fac Upp Traps Triggered 12 | . 1 . 1 . 3 1 2 2 2 . Indirectly . | . . . . . . . . . . . Trap Hack Attempts . | . . . . . . . . . . . Triggered . | . . . . . . . . . . . Disarmed . | . . . . . . . . . . . Reprogrammed . | . . . . . . . . . . . Reused . | . . . . . . . . . . . Traps Extracted . | . . . . . . . . . . . Installed . | . . . . . . . . . . . Triggered . | . . . . . . . . . . . Most Traps Carried 4 | . . . . . 4 4 4 4 4 . Machines | -11 -10 -10 -10 -8 -8 -8 -7 -6 -5 -5 ---------- Run | Yrd Mat Min Sub Mat Gar Mat Fac Fac Fac Upp Machines Disabled 30 | . . 1 . . 7 2 8 7 5 . Max in Single Turn 6 | . . 1 . . 2 1 6 6 2 . Garrison Access 1 | . . . . . . . 1 . . . Garrison Relay 1 | . . . . . 1 . . . . . Phase Generator 1 | . . . . . 1 . . . . . Machines Repaired . | . . . . . . . . . . . Machines Dismantled . | . . . . . . . . . . . Machines Sabotaged . | . . . . . . . . . . . Overloaded Fab Kills . | . . . . . . . . . . . Hacking | -11 -10 -10 -10 -8 -8 -8 -7 -6 -5 -5 --------- Run | Yrd Mat Min Sub Mat Gar Mat Fac Fac Fac Upp Machines Accessed 12 | . 1 . 1 2 1 2 3 . 2 . Terminals 9 | . 1 . . 1 1 2 2 . 2 . Fabricators . | . . . . . . . . . . . Repair Stations 1 | . . . . . . . 1 . . . Recycling Units . | . . . . . . . . . . . Scanalyzers . | . . . . . . . . . . . Garrison Access 1 | . . . . 1 . . . . . . Total Hacks 25 | . 2 . 4 2 2 4 6 . 5 . Successful 19 | . 2 . 4 2 1 4 3 . 3 . Failed 6 | . . . . . 1 . 3 . 2 . Catastrophic . | . . . . . . . . . . . Database Lockouts . | . . . . . . . . . . . Manual . | . . . . . . . . . . . Terminals 17 | . 2 . . 1 2 4 3 . 5 . Fabricators . | . . . . . . . . . . . Repair Stations 3 | . . . . . . . 3 . . . Recycling Units . | . . . . . . . . . . . Scanalyzers . | . . . . . . . . . . . Garrison Access 1 | . . . . 1 . . . . . . Terminal Hacks 17 | . 2 . 4 1 1 4 2 . 3 . Record 9 | . . . 4 1 . 2 . . 2 . Open Door 1 | . . . . . 1 . . . . . Open DSF 1 | . . . . . . . 1 . . . Emergency Access Points 1 | . . . . . . 1 . . . . Alert Level 3 | . 1 . . . . 1 1 . . . Locate Traps 2 | . 1 . . . . . . . 1 . Fabricator Hacks . | . . . . . . . . . . . Repair Station Hacks 1 | . . . . . . . 1 . . . Scan Component 1 | . . . . . . . 1 . . . Recycling Unit Hacks . | . . . . . . . . . . . Scanalyzer . | . . . . . . . . . . . Garrison Access Hacks 1 | . . . . 1 . . . . . . Unlock Access 1 | . . . . 1 . . . . . . Unauthorized Hacks . | . . . . . . . . . . . Terminals . | . . . . . . . . . . . Fabricators . | . . . . . . . . . . . Repair Stations . | . . . . . . . . . . . Recycling Units . | . . . . . . . . . . . Scanalyzers . | . . . . . . . . . . . Garrison Access . | . . . . . . . . . . . Data Cores Recovered 1 | . . . . . . . 1 . . . Used 1 | . . . . . . . 1 . . . Hacking Detections 5 | . . . . . 1 1 2 . 1 . Full Trace Events 2 | . . . . . . . 1 . 1 . Feedback Events . | . . . . . . . . . . . Feedback Blocked . | . . . . . . . . . . . Robot Schematics Acquired . | . . . . . . . . . . . Robots Built . | . . . . . . . . . . . Authchips . | . . . . . . . . . . . Time . | . . . . . . . . . . . Total Robot Build Rating . | . . . . . . . . . . . Part Schematics Acquired . | . . . . . . . . . . . Parts Built . | . . . . . . . . . . . Authchips . | . . . . . . . . . . . Time . | . . . . . . . . . . . Total Part Build Rating . | . . . . . . . . . . . Parts Repaired . | . . . . . . . . . . . Time . | . . . . . . . . . . . Parts Recycled . | . . . . . . . . . . . Recycled Matter . | . . . . . . . . . . . Retrieved Matter . | . . . . . . . . . . . Retrieved Components . | . . . . . . . . . . . Parts Scanalyzed . | . . . . . . . . . . . Part Schematics Acquired . | . . . . . . . . . . . Parts Damaged . | . . . . . . . . . . . Bothacking | -11 -10 -10 -10 -8 -8 -8 -7 -6 -5 -5 ------------ Run | Yrd Mat Min Sub Mat Gar Mat Fac Fac Fac Upp Used RIF Installer 1 | . . . . . 1 . . . . . Robots Hacked . | . . . . . . . . . . . Non-combat . | . . . . . . . . . . . Combat . | . . . . . . . . . . . Robot Hacks Applied . | . . . . . . . . . . . Relay Couplers Released 5 | . . . . . 4 . 1 . . . Machine Destruction 5 | . . . . . 4 . 1 . . . Fabnet Peak Effective % . | . . . . . . . . . . . Robots Rewired . | . . . . . . . . . . . Allies Hacked . | . . . . . . . . . . . Hacks Repelled . | . . . . . . . . . . . Allies | -11 -10 -10 -10 -8 -8 -8 -7 -6 -5 -5 -------- Run | Yrd Mat Min Sub Mat Gar Mat Fac Fac Fac Upp Total Allies 2 | . . . . . 2 . . . . . Largest Group 2 | . . . . . 2 . . . . . Highest-Rated Group 64 | . . . . . 64 . . . . . Highest-Rated Ally 39 | . . . . . 39 . . . . . Total Orders 4 | . . . . . . . . . 4 . EXPLORE 3 | . . . . . . . . . 3 . RETURN 1 | . . . . . . . . . 1 . Ally Attacks 26 | . . . . . 26 . . . . . Total Damage 387 | . . . . . 387 . . . . . Kills 5 | . . . . . 5 . . . . . Allies Corrupted . | . . . . . . . . . . . Allies Melted . | . . . . . . . . . . . Intel | -11 -10 -10 -10 -8 -8 -8 -7 -6 -5 -5 ------- Run | Yrd Mat Min Sub Mat Gar Mat Fac Fac Fac Upp Robot Analysis Total . | . . . . . . . . . . . Derelict Logs Recovered 3 | . . 1 1 . . . . . . 1 Drone Launches 8 | . . . . . . . . . 8 . Drone Recoveries 7 | . . . . . . . . . 7 . Exploration | -11 -10 -10 -10 -8 -8 -8 -7 -6 -5 -5 ------------- Run | Yrd Mat Min Sub Mat Gar Mat Fac Fac Fac Upp Turns Passed 14984 | 6815 543 457 1221 53 1247 1270 811 866 1531 170 Spaces Moved 8866 | 4486 340 285 676 32 614 661 392 354 688 338 Core 282 | 24 . . . . . . . . 180 78 Treads 2707 | . . . 161 17 614 661 392 354 508 . Legs 5492 | 4462 340 285 405 . . . . . . . Wheels 125 | . . . 110 15 . . . . . . Hover . | . . . . . . . . . . . Flight 260 | . . . . . . . . . . 260 Fastest Speed 45 | 50 120 120 110 110 152 160 152 160 50 45 Average Speed 128 | 119 120 120 128 132 153 160 159 167 142 46 Slowest Speed 240 | 120 120 120 190 152 160 160 240 240 240 50 Overloaded Moves . | . . . . . . . . . . . Propulsion Burnouts . | . . . . . . . . . . . Robots Hopped . | . . . . . . . . . . . Cave-ins Triggered . | . . . . . . . . . . . Exploration Rate (%) 40 | 111 51 51 45 4 46 48 10 11 24 40 Regions Visited 10 Branch Regions 3 Pre-discovered Areas 4 | . . 1 2 . . . . . . 1 Known Exits Taken 5 | . . 1 1 1 . . 1 1 . . Unknown Exits Taken 4 | 1 1 . . . . 1 . . 1 . Scrap Searched 3 | . . 2 . . . . . . . 1 Spaces Dug 106 | 106 . . . . . . . . . . Terrain Destroyed 443 | 127 . 52 31 . 87 59 38 25 24 . Melee . | . . . . . . . . . . . Projectile 275 | 127 . . . . 3 59 38 24 24 . AOE 168 | . . 52 31 . 84 . . 1 . . Terrain Rammed . | . . . . . . . . . . . Walls Destroyed . | . . . . . . . . . . . Machines Disabled . | . . . . . . . . . . . Actions | -11 -10 -10 -10 -8 -8 -8 -7 -6 -5 -5 --------- Run | Yrd Mat Min Sub Mat Gar Mat Fac Fac Fac Upp Total 10871 | 4976 430 360 934 43 862 748 469 579 1117 353 Wait 975 | 139 54 31 167 . 155 1 . 147 274 7 Move 8855 | 4485 339 284 675 31 612 660 391 353 687 338 Hop . | . . . . . . . . . . . Pick Up 130 | 16 6 8 8 6 20 11 13 19 19 4 Fast Attach . | . . . . . . . . . . . Attach 77 | 7 1 . 11 3 7 1 5 11 29 2 Detach 10 | . . . 2 . . . . 1 7 . Swap 78 | 3 3 13 21 1 6 3 2 8 18 . Drop 66 | 2 3 6 7 2 17 4 2 14 7 2 Fire 644 | 321 22 18 41 . 41 61 56 24 60 . Melee 11 | . . . . . . . . . 11 . Ram 3 | . . . . . . . . . 3 . Kick 5 | 3 2 . . . . . . . . . Crush 11 | . . . . . . 7 . 2 2 . Escape Stasis . | . . . . . . . . . . . Rewire 6 | . . . 2 . 4 . . . . . Trap . | . . . . . . . . . . . Miscellaneous . | . . . . . . . . . . . Route ------- -11/Scrapyard -10/Materials (discovered 2 exits: [*Mat] / *Min) -10/Mines (discovered 2 exits: [*Mat] / *Sub) -10/Subcaves (discovered 3 exits: *Mat x2 / [*Rec]) -8/Materials -8/Garrison -8/Materials (discovered 2 exits: *Fac x2) -7/Factory -6/Factory -5/Factory -5/Upper Caves History --------- Turn | Location | Event 2 | -11/Scrapyard | Discovered new exit (range 16) 6816 | -11/Scrapyard | Entered Materials 6817 | -10/Materials | Build established: Mutant 6880 | -10/Materials | Discovered new exit (range 7) 7034 | -10/Materials | Discovered new exit (range 7) 7359 | -10/Materials | Entered Mines 7384 | -10/Mines | Met a Derelict bent on vengeance 7402 | -10/Mines | Identified exit to Subcaves 7582 | -10/Mines | Discovered new exit (range 10) 7742 | -10/Mines | Learned location of Storage (-7) 7815 | -10/Mines | Build established: Scavenger-Mutant 7816 | -10/Mines | Entered Subcaves 7839 | -10/Subcaves | Shifting Twisted Machinery released Flamer 8035 | -10/Subcaves | Shifting Twisted Machinery released Flamer 8355 | -10/Subcaves | A swath of the cavern ceiling suddenly collapsed 8355 | -10/Subcaves | Shifting Twisted Machinery released Hvy. Riot Gun 8357 | -10/Subcaves | Shifting Twisted Machinery released Spk. Treads 8391 | -10/Subcaves | Ambushed by Subdwellers from Twisted Machinery 8415 | -10/Subcaves | Core integrity fell below 50% 8473 | -10/Subcaves | Lost 3 parts (1u2w) 8546 | -10/Subcaves | Discovered new exit (range 13) 8589 | -10/Subcaves | Learned location of Zion (-7) 8589 | -10/Subcaves | Met a Zionite searching for "candidates" 8593 | -10/Subcaves | Lost 3 parts (2n1w) 8773 | -10/Subcaves | Core integrity fell below 20% 8912 | -10/Subcaves | Visited Clippyterm 8916 | -10/Subcaves | Identified exit to Materials 8916 | -10/Subcaves | Learned location of Extension (-6) 8927 | -10/Subcaves | Learned Materials terminal intel 8959 | -10/Subcaves | Curiously followed by a Cobbler waking with a query about "LVR3C" 9029 | -10/Subcaves | Shifting Twisted Machinery released Scrap Shield 9037 | -10/Subcaves | Entered Materials 9037 | -8/Materials | Evolved 4 slots: Propulsion x1, Utility x3 9038 | -8/Materials | Loaded intel: 12 terminal locations 9088 | -8/Materials | Identified exit to Garrison 9090 | -8/Materials | Entered Garrison 9122 | -8/Garrison | Triggered checkpoint 9262 | -8/Garrison | Installed Relay Interface Framework 9395 | -8/Garrison | Rescued a captive Derelict 9397 | -8/Garrison | Rescued a captive Derelict 9474 | -8/Garrison | Phase Generator disabled 9568 | -8/Garrison | Triggered checkpoint 9636 | -8/Garrison | Triggered checkpoint 9970 | -8/Garrison | Build established: Mutant 10225 | -8/Garrison | Garrison Relay disabled 10315 | -8/Garrison | Discovered new exit (range 14) 10337 | -8/Garrison | Entered Materials 10760 | -8/Materials | Discovered new exit (range 16) 11137 | -8/Materials | First assault squad dispatched 11478 | -8/Materials | Discovered new exit (range 16) 11607 | -8/Materials | Entered Factory 11607 | -7/Factory | Evolved 2 slots: Utility x2 11746 | -7/Factory | Discovered new exit (range 16) 11891 | -7/Factory | Garrison activated, responded to threat 12199 | -7/Factory | Garrison activated, responded to threat 12407 | -7/Factory | First assault squad dispatched 12417 | -7/Factory | Identified exit to Factory 12418 | -7/Factory | Entered another Factory area 12418 | -6/Factory | Evolved 2 slots: Utility x1, Weapon x1 12801 | -6/Factory | Build established: Scavenger-Skirmisher 12968 | -6/Factory | System corruption reached 10% 13273 | -6/Factory | Discovered new exit (range 4) 13278 | -6/Factory | Identified exit to Factory 13284 | -6/Factory | Entered another Factory area 13284 | -5/Factory | Evolved 2 slots: Power x1, Propulsion x1 14305 | -5/Factory | Build established: Scavenger-Gunner 14315 | -5/Factory | Spotted B-75 Beast 14376 | -5/Factory | Lost 9 parts (2p3n2u2w) 14629 | -5/Factory | Build established: Mutant 14711 | -5/Factory | Released all parts (3) 14716 | -5/Factory | Core integrity fell below 50% 14740 | -5/Factory | Lost 12 parts (1p2n6u3w) 14806 | -5/Factory | Core integrity fell below 20% 14808 | -5/Factory | Discovered new exit (range 11) 14815 | -5/Factory | Entered Upper Caves 14867 | -5/Upper Caves | Learned location of Warlord (-5) 14894 | -5/Upper Caves | Encountered a Warlord checkpoint 14970 | -5/Upper Caves | Lost 3 allies 14985 | -5/Upper Caves | Destroyed by H-66 Slayer with Heavy Assault Rifle Last Messages --------------- 14895_ Structural Scanner destroyed. 14895_ Slug penetrates Wall. 14906_ Slug penetrates C7-LI0(g). 14906_ Slug penetrates Wall. 14908_ Slug penetrates L7-46W(g). 14910_ Slug penetrates C7-LI0(g). 14910_ C7-LI0(g) destroyed. 14943_ Penetrated by Slug. 14943_ Fusion Compressor destroyed. 14943_ Penetrated by Slug. 14950_ Field Propulsion Drive destroyed. 14956_ System corrupted: Energy discharge (-27). 14956_ Acquired 36 matter. 14957_ Acquired Neutrino Core. 14961_ Acquired 43 matter. 14962_ Acquired Com. Battery. 14980_ Dropped Adv. Trap Extractor. 14980_ Dropped Hcp. Storage Unit. 14981_ Acquired Railgun. 14985_ Penetrated by Slug. Map ----- +----------------------------------------------------+ | ???????????????????????????????????????????????? | | ?????????????????????????????????????????????????? | | ?????????????????????????????????????????????????? | | ?????????????????????????????????????????????????? | | ?????????????????????????????????????????????????? | | ???????????????????????????????????????????????##? | | ???????????????????????????????????????????????# ? | | ???????????????????????????????????????????????# ? | | ???????????????????????????????????????????????# ? | | ???????????????????????????????????????????????# ? | | ????????????????????????????????????????? ???### # | | ????????????????????????????????????????? ??## | | ?????????????????????????????? ?????????# ??# | | ?????????????????????????????? ???????## #### | | ?????????????????????????????? #??? ??# #?# | | ?????????????????????????????# ??? ?? ??## | | ?????????????????????????????# #??? #? ???## | | ?????????????????????????????# #??# #? ????## | | ?????????????????????????????# #??# #?# ?????## | | ?????????????????????????????# #??# #?? ???????# | | ?????????????????????????????# #??# #?# ?????### | | ????????????????????????????## #?## ### ????## | | ????????????????????####??### ### ## ????# | | ???????????????????## #### ## #????# | | ???????????????????# ## ## ## ###### | | ???????????????????#!### @ #?# % | | ???????????????????#! #### #?# ###### | | ???????????????????# ![#?# ### ##??# | | ???????????????????#####?## #### h ##?## | | ??????????????????????????# #??## #??# | | ??????????????????????????## #???##### ##??### | | ???????????????????????????# #???????# ##?????? | | ???????????????????????????# ######## ##??????? | | ???????????????????????????# ##???????? | | ???????????????????????????# #????????? | | ???????????????????????????##############????????? | | ?????????????????????????????????????????????????? | | ?????????????????????????????????????????????????? | | ?????????????????????????????????????????????????? | | ?????????????????????????????????????????????????? | | ?????????????????????????????????????????????????? | | ?????????????????????????????????????????????????? | | ?????????????????????????????????????????????????? | | ?????????????????????????????????????????????????? | | ?????????????????????????????????????????????????? | | ?????????????????????????????????????????????????? | | ?????????????????????????????????????????????????? | | ?????????????????????????????????????????????????? | | ?????????????????????????????????????????????????? | | ?????????????????????????????????????????????????? | +----------------------------------------------------+ Best States ------------- Heat Dissipation 96 Energy Generation 29 Energy Capacity 340 Matter Stores 300 Matter Capacity 300 Sight Range 22 Robot Scan Range 15 Terrain Scan Range 20 Terrain Scan Density 10 Additional Mass Support 12 Base Temperature (-) 100 Armor Coverage 800 Weapon Cycling 20 Evasion (%) 61 Targeting Accuracy 8 Recoil Reduction 13 Authchip Count 1 Trap Extractor Capacity 8 Item Schematics ----------------- None Robot Schematics ------------------ None Fabricated ------------ Nothing Alien Tech Used ----------------- None Achievements -------------- Close Call Dynamic Key I Spy Challenges ------------ None Game ------ Seed AntigravCoilObliterator Manual? 0 Play Time 03:02:52 Cumulative 16.3 hours Start 2024.09.20 @ 22:31:56 End 2024.09.21 @ 02:12:07 Sessions 1 Manual Loads 0 Difficulty Rogue Special Mode None Game No. 9 Rogue 9 Adventurer 0 Explorer 0 Win Type - Total 0 Types 0/0/0/0/0/0/0/0/0 Lore% 10 Gallery% 18 Achievement% 19 Wizard Run 0 Options --------- Layout 1 ASCII 0 Keyboard 0 Movement Numpad Keybinds 0 Fullscreen 1 Font 24/Smallcaps Map View 50x40 Zoom Use 0% Tactical HUD 1 Map Filters NONE Filters NONE Steam 1 RUN: 833226a7-17d0-4431-a499-dbcb0ae80614